Workbook

Sheet 使い方
A1: 特定健診まだら受診等分析ツールVer.1.2
A2: （１）ＫＤＢの被保険者管理台帳の画面から、ＣＳＶファイルを出力・保存する。
A3: （２）「ここから開始」シートから（１）で保存したＣＳＶファイルを選択する。
A4: ・医療機関受療状況を選ぶ。「医科全て」は医療機関からの健診受診勧奨について、「生活習慣病」は"みなし健診"について、検討するための資料としての活用などが想定されます。
A5: ・分析年度を選ぶ。当該年度の特定健診が終わっていない時期の被保険者管理台帳を用いる場合は、まだ健診未受診者が多いので、「１年度前-２年度前-３年度前」を推奨。
A6: （３）「計算開始」をクリックすると、計算結果が表示される。
A7: ３年度連続で通年の有資格者を集計対象としています。おおよその特徴を把握するためにお使いください。
A8: このツール内に個人単位のデータが残ることはありません。
A9: 2GB(約350万人)を超えるCSVファイルは扱えません。
A10: 見本データは全て仮想値です。
A12: このエクセルファイルは、マクロを使っています。 セキュリティの警告でマクロが無効にされた場合は、コンテンツの有効化を行って下さい。
A30: 履歴
A31: Ver.1.2 2026/6/22 公開

Sheet ここから開始
A1: =使い方!A1 -> 特定健診まだら受診等分析ツールVer.1.2 | E1: 受療状況 | F1: 2 | G1: ←消さないでください
B2: 使い方：「参照」でＫＤＢの被保険者管理台帳（CSVファイル）を指定して「計算開始」 | E2: 分析年度 | F2: 2 | G2: ←消さないでください

Sheet 出力票
B1: 特定健診受診と医療機関通院（医科全て）の状況【999999 ＊＊市 R06年度（累計）】（１年度前-２年度前-３年度前の解析） | Q1: =ここから開始!A1 -> 特定健診まだら受診等分析ツールVer.1.2
B2: 該当人数
C3: 男性 | H3: 女性 | M3: 男女計
B4: 年齢階級 | C4: ３年連続受診 | D4: まだら受診 | E4: 未受診・未通院 | F4: 未受診・通院 | G4: 有資格計 | H4: =C4 -> ３年連続受診 | I4: =D4 -> まだら受診 | J4: 未受診・未通院 | K4: 未受診・通院 | L4: 有資格計 | M4: =C4 -> ３年連続受診 | N4: =D4 -> まだら受診 | O4: 未受診・未通院 | P4: 未受診・通院 | Q4: 有資格計
B5: 42-44歳 | C5: 75 | D5: 213 | E5: 560 | F5: 244 | G5: 1092 | H5: 93 | I5: 198 | J5: 268 | K5: 226 | L5: 785 | M5: 168 | N5: 411 | O5: 828 | P5: 470 | Q5: 1877
B6: 45-49歳 | C6: 269 | D6: 369 | E6: 1071 | F6: 508 | G6: 2217 | H6: 288 | I6: 348 | J6: 617 | K6: 418 | L6: 1671 | M6: 557 | N6: 717 | O6: 1688 | P6: 926 | Q6: 3888
B7: 50-54歳 | C7: 408 | D7: 436 | E7: 1118 | F7: 798 | G7: 2760 | H7: 399 | I7: 465 | J7: 731 | K7: 551 | L7: 2146 | M7: 807 | N7: 901 | O7: 1849 | P7: 1349 | Q7: 4906
B8: 55-59歳 | C8: 458 | D8: 412 | E8: 938 | F8: 694 | G8: 2502 | H8: 533 | I8: 461 | J8: 587 | K8: 555 | L8: 2136 | M8: 991 | N8: 873 | O8: 1525 | P8: 1249 | Q8: 4638
B9: 60-64歳 | C9: 431 | D9: 361 | E9: 605 | F9: 687 | G9: 2084 | H9: 732 | I9: 562 | J9: 479 | K9: 644 | L9: 2417 | M9: 1163 | N9: 923 | O9: 1084 | P9: 1331 | Q9: 4501
B10: 65-69歳 | C10: 993 | D10: 739 | E10: 671 | F10: 1094 | G10: 3497 | H10: 1955 | I10: 1241 | J10: 732 | K10: 1263 | L10: 5191 | M10: 2948 | N10: 1980 | O10: 1403 | P10: 2357 | Q10: 8688
B11: 70-74歳 | C11: 2587 | D11: 1662 | E11: 891 | F11: 2177 | G11: 7317 | H11: 4304 | I11: 2233 | J11: 1057 | K11: 2694 | L11: 10288 | M11: 6891 | N11: 3895 | O11: 1948 | P11: 4871 | Q11: 17605
B12: 計 | C12: 5221 | D12: 4192 | E12: 5854 | F12: 6202 | G12: 21469 | H12: 8304 | I12: 5508 | J12: 4471 | K12: 6351 | L12: 24634 | M12: 13525 | N12: 9700 | O12: 10325 | P12: 12553 | Q12: 46103
B14: 全体に占める割合
C15: 男性 | H15: 女性 | M15: 男女計
B16: 年齢階級 | C16: =C4&CHAR(10)&"計"&FIXED(C24*100,1)&"%" -> ３年連続受診 計24.3% | D16: =D4&CHAR(10)&"計"&FIXED(D24*100,1)&"%" -> まだら受診 計19.5% | E16: 未受診・未通院 計27.3% | F16: 未受診・通院 計28.9% | G16: 有資格計 | H16: =H4&CHAR(10)&"計"&FIXED(H24*100,1)&"%" -> ３年連続受診 計33.7% | I16: =I4&CHAR(10)&"計"&FIXED(I24*100,1)&"%" -> まだら受診 計22.4% | J16: 未受診・未通院 計18.1% | K16: 未受診・通院 計25.8% | L16: 有資格計 | M16: =M4&CHAR(10)&"計"&FIXED(M24*100,1)&"%" -> ３年連続受診 計29.3% | N16: =N4&CHAR(10)&"計"&FIXED(N24*100,1)&"%" -> まだら受診 計21.0% | O16: 未受診・未通院 計22.4% | P16: 未受診・通院 計27.2% | Q16: 有資格計
B17: 42-44歳 | C17: =C5/$G$12 -> 0.003493409101 | D17: =D5/$G$12 -> 0.009921281848 | E17: 0.02608412129 | F17: 0.01136522428 | G17: 0.05086403652 | H17: =H5/$L$12 -> 0.003775269952 | I17: =I5/$L$12 -> 0.008037671511 | J17: 0.01087927255 | K17: 0.009174311927 | L17: 0.03186652594 | M17: =M5/$Q$12 -> 0.003644014489 | N17: =N5/$Q$12 -> 0.008914821161 | O17: 0.0179597857 | P17: 0.01019456435 | Q17: 0.04071318569
B18: 45-49歳 | C18: =C6/$G$12 -> 0.01252969398 | D18: 0.01718757278 | E18: 0.04988588197 | F18: 0.02366202431 | G18: 0.103265173 | H18: =H6/$L$12 -> 0.01169115856 | I18: 0.01412681659 | J18: 0.02504668345 | K18: 0.01696841763 | L18: 0.06783307624 | M18: =M6/$Q$12 -> 0.01208164328 | N18: 0.01555213327 | O18: 0.03661366939 | P18: 0.02008546082 | Q18: 0.08433290675
B19: 50-54歳 | C19: =C7/$G$12 -> 0.01900414551 | D19: 0.02030835158 | E19: 0.05207508501 | F19: 0.03716987284 | G19: 0.1285574549 | H19: =H7/$L$12 -> 0.01619712592 | I19: 0.01887634976 | J19: 0.02967443371 | K19: 0.02236745961 | L19: 0.087115369 | M19: =M7/$Q$12 -> 0.01750428389 | N19: 0.01954319676 | O19: 0.04010584994 | P19: 0.02926056873 | Q19: 0.1064138993
B20: 55-59歳 | C20: =C8/$G$12 -> 0.02133308491 | D20: 0.01919046066 | E20: 0.04369090316 | F20: 0.03232567889 | G20: 0.1165401276 | H20: =H8/$L$12 -> 0.0216367622 | I20: 0.01871397256 | J20: 0.02382885443 | K20: 0.02252983681 | L20: 0.086709426 | M20: =M8/$Q$12 -> 0.02149534737 | N20: 0.01893586101 | O20: 0.03307810772 | P20: 0.02709151248 | Q20: 0.1006008286
B21: 60-64歳 | C21: =C9/$G$12 -> 0.02007545764 | D21: 0.01681494248 | E21: 0.02818016675 | F21: 0.03199962737 | G21: 0.09707019423 | H21: =H9/$L$12 -> 0.02971502801 | I21: 0.02281399691 | J21: 0.01944466997 | K21: 0.02614272956 | L21: 0.09811642445 | M21: =M9/$Q$12 -> 0.02522612411 | N21: 0.02002038913 | O21: 0.02351256968 | P21: 0.0288701386 | Q21: 0.09762922153
B22: 65-69歳 | C22: =C10/$G$12 -> 0.0462527365 | D22: 0.03442172435 | E22: 0.03125436676 | F22: 0.05095719409 | G22: 0.1628860217 | H22: =H10/$L$12 -> 0.0793618576 | I22: 0.050377527 | J22: 0.02971502801 | K22: 0.05127060161 | L22: 0.2107250142 | M22: =M10/$Q$12 -> 0.06394377806 | N22: 0.04294731362 | O22: 0.0304318591 | P22: 0.05112465566 | Q22: 0.1884476064
B23: 70-74歳 | C23: =C11/$G$12 -> 0.1204993246 | D23: 0.07741394569 | E23: 0.04150170013 | F23: 0.1014020215 | G23: 0.3408169919 | H23: =H11/$L$12 -> 0.1747178696 | I23: 0.09064707315 | J23: 0.04290817569 | K23: 0.1093610457 | L23: 0.4176341642 | M23: =M11/$Q$12 -> 0.1494696657 | N23: 0.08448474069 | O23: 0.04225321563 | P23: 0.1056547296 | Q23: 0.3818623517
B24: 計 | C24: =C12/$G$12 -> 0.2431878523 | D24: 0.1952582794 | E24: 0.2726722251 | F24: 0.2888816433 | G24: 1 | H24: =H12/$L$12 -> 0.3370950719 | I24: 0.2235934075 | J24: 0.1814971178 | K24: 0.2578144029 | L24: 1 | M24: =M12/$Q$12 -> 0.293364857 | N24: 0.2103984556 | O24: 0.2239550572 | P24: 0.2722816303 | Q24: 1
B25: 解析対象はタイトルに表示されている３年度継続（4/1～3/31通年）で有資格の者 年齢はうち最新年度の年齢 「通院」は同最新年度に医療のレセプトがある者 「まだら受診」は３年度間で特定健診を１～２回受診した者
